[Event "FIDE Zonal 2.5 Open 2019"]
[Site "Montevideo"]
[Date "2019.04.14"]
[Round "2.3"]
[White "Jodorcovsky Werjivker, Paulo"]
[Black "Peralta, Fernando"]
[Result "0-1"]
[ECO "A05"]
[WhiteElo "2257"]
[BlackElo "2572"]
[Annotator "ChessBase"]
[PlyCount "58"]
[EventDate "2019.04.13"]
[EventType "swiss"]
[EventCountry "URU"]
[SourceTitle "playchess.com"]
[Source "ChessBase"]
[SourceQuality "1"]
[TimeControl "40/5400+30:1800+30"]

1. Nf3 {[%emt 0:00:00]} Nf6 {[%emt 0:00:00]} 2. e3 {[%emt 0:00:00]} d5 {[%emt 0:01:03]} 3. c4 {[%emt 0:02:13]} e6 {[%emt 0:00:28]} 4. Nc3 {[%emt 0:01:25]} c5 {[%emt 0:00:59]} 5. d4 {[%emt 0:00:25]} a6 {[%emt 0:00:08]} 6. a3 {[%emt 0:00:29]} dxc4 {[%emt 0:01:22]} 7. Bxc4 {[%emt 0:01:08]} b5 {[%emt 0:00:11]} 8. Be2 {[%emt 0:01:50]} Bb7 {[%emt 0:00:37]} 9. O-O {[%emt 0:02:57]} Nbd7 {[%emt 0:00:13]} 10. dxc5 {[%emt 0:03:11]} Bxc5 {[%emt 0:01:40]} 11. b4 {[%emt 0:00:22]} Be7 {[%emt 0:00:39]} 12. Bb2 {[%emt 0:00:15]} O-O {[%emt 0:01:09]} 13. Qb3 {[%emt 0:00:56]} Qb8 {[%emt 0:06:41]} 14. Rfd1 {[%emt 0:04:28]} Rc8 {[%emt 0:00:48]} 15. Nd4 {[%emt 0:08:12]} Nf8 {[%emt 0:09:18]} 16. Bf3 {[%emt 0:07:53]} Ng6 {[%emt 0:02:26]} 17. Bxb7 {[%emt 0:15:03]} Qxb7 {[%emt 0:00:17]} 18. Nf3 {[%emt 0:00:06]} Rc4 {[%emt 0:03:57]} 19. Ne2 {[%emt 0:06:05]} Nd5 {[%emt 0:02:42]} 20. Rd2 {[%emt 0:11:35]} Rac8 {[%emt 0:02:08]} 21. Rad1 {[%emt 0:01:02]} h6 {[%emt 0:08:20]} 22. h3 {[%emt 0:01:12]} Bf8 {[%emt 0:02:16]} 23. Qa2 {[%emt 0:08:59]} Nb6 {[%emt 0:06:59]} 24. Qb1 {[%emt 0:03:59]} Qb8 {[%emt 0:09:26]} 25. Ned4 {[%emt 0:01:48]} Ne7 {[%emt 0:05:14]} 26. Nb3 {[%emt 0:01:57]} Ned5 {[%emt 0:01:36]} 27. Ne5 {[%emt 0:06:49]} Rc3 {[%emt 0:05:53]} 28. Nxf7 {[%emt 0:08:54]} Kxf7 {[%emt 0:02:52]} 29. Qh7 {[%emt 0:00:39]} Nf6 {[%emt 0:02:00]} 0-1

[Event "FIDE Zonal 2.5 Open 2019"]
[Site "Montevideo"]
[Date "2019.04.14"]
[Round "2.4"]
[White "Pichot, Alan"]
[Black "Rodriguez, Santiago"]
[Result "1-0"]
[ECO "B38"]
[WhiteElo "2566"]
[BlackElo "2257"]
[Annotator "ChessBase"]
[PlyCount "99"]
[EventDate "2019.04.13"]
[EventType "swiss"]
[EventCountry "URU"]
[SourceTitle "playchess.com"]
[Source "ChessBase"]
[SourceQuality "1"]
[TimeControl "40/5400+30:1800+30"]

1. e4 {[%emt 0:00:00]} c5 {[%emt 0:00:00]} 2. Nf3 {[%emt 0:00:08]} g6 {[%emt 0:00:30]} 3. d4 {[%emt 0:00:25]} cxd4 {[%emt 0:00:08]} 4. Nxd4 {[%emt 0:00:05]} Bg7 {[%emt 0:00:34]} 5. c4 {[%emt 0:00:12]} Nc6 {[%emt 0:01:26]} 6. Be3 {[%emt 0:00:20]} Nf6 {[%emt 0:00:59]} 7. Nc3 {[%emt 0:00:05]} O-O {[%emt 0:00:50]} 8. Be2 {[%emt 0:00:11]} d6 {[%emt 0:00:42]} 9. O-O {[%emt 0:00:11]} Bd7 {[%emt 0:00:51]} 10. h3 {[%emt 0:01:26]} Nxd4 {[%emt 0:04:13]} 11. Bxd4 {[%emt 0:00:09]} Bc6 {[%emt 0:00:06]} 12. Qc2 {[%emt 0:00:07]} Qc7 {[%emt 0:13:31]} 13. b4 {[%emt 0:02:52]} b5 {[%emt 0:01:40]} 14. cxb5 {[%emt 0:10:31]} Bxe4 {[%emt 0:00:22]} 15. Qd2 {[%emt 0:05:46]} e5 {[%emt 0:22:16]} 16. Be3 {[%emt 0:00:24]} Bb7 {[%emt 0:02:38]} 17. Rac1 {[%emt 0:03:31]} Qd7 {[%emt 0:06:23]} 18. f4 {[%emt 0:00:32]} Qe6 {[%emt 0:13:04]} 19. Rcd1 {[%emt 0:08:52]} exf4 {[%emt 0:08:12]} 20. Bxf4 {[%emt 0:06:19]} Rac8 {[%emt 0:00:31]} 21. Bf3 {[%emt 0:06:51]} Bxf3 {[%emt 0:07:32]} 22. Rxf3 {[%emt 0:00:09]} Rc4 {[%emt 0:13:17]} 23. Qxd6 {[%emt 0:01:45]} Qxd6 {[%emt 0:01:03]} 24. Rxd6 {[%emt 0:11:55]} Re8 {[%emt 0:00:32]} 25. a3 {[%emt 0:02:10]} Nh5 {[%emt 0:00:23]} 26. Bd2 {[%emt 0:00:40]} Bd4+ {[%emt 0:00:17]} 27. Kf1 {[%emt 0:01:03]} Be5 {[%emt 0:00:10]} 28. Rdd3 {[%emt 0:00:15]} f5 {[%emt 0:00:41]} 29. Nd5 {[%emt 0:01:00]} f4 {[%emt 0:00:20]} 30. Ke2 {[%emt 0:03:28]} g5 {[%emt 0:00:25]} 31. Kd1 {[%emt 0:00:19]} Kf7 {[%emt 0:00:28]} 32. b6 {[%emt 0:02:11]} axb6 {[%emt 0:01:13]} 33. Nxb6 {[%emt 0:00:06]} Rc6 {[%emt 0:00:08]} 34. Nd7 {[%emt 0:00:27]} Nf6 {[%emt 0:00:49]} 35. a4 {[%emt 0:03:45]} Ne4 {[%emt 0:00:25]} 36. Nxe5+ {[%emt 0:01:10]} Rxe5 {[%emt 0:00:05]} 37. Be1 {[%emt 0:00:20]} Rce6 {[%emt 0:00:42]} 38. Rf1 {[%emt 0:02:45]} Kg6 {[%emt 0:00:38]} 39. Kc2 {[%emt 0:01:56]} Nd6 {[%emt 0:00:15]} 40. Bc3 {[%emt 0:05:38]} Re2+ {[%emt 0:00:08]} 41. Rd2 {[%emt 0:30:08]} R2e4 {[%emt 0:01:36]} 42. Kb3 {[%emt 0:00:00]} Re3 {[%emt 0:07:08]} 43. Rf3 {[%emt 0:00:00]} Ne4 {[%emt 0:00:29]} 44. Rc2 {[%emt 0:00:00]} h5 {[%emt 0:08:44]} 45. Rxe3 {[%emt 0:00:00]} fxe3 {[%emt 0:00:07]} 46. Be1 {[%emt 0:00:00]} g4 {[%emt 0:06:22]} 47. hxg4 {[%emt 0:00:00]} hxg4 {[%emt 0:00:02]} 48. b5 {[%emt 0:00:00]} Kf5 {[%emt 0:01:29]} 49. a5 {[%emt 0:00:00]} Re5 {[%emt 0:01:59]} 50. Kb4 {[%emt 0:00:00]} 1-0

[Event "FIDE Zonal 2.5 Open 2019"]
[Site "Montevideo"]
[Date "2019.04.14"]
[Round "2.6"]
[White "Henriquez Villagra, Cristobal"]
[Black "Larrea, Manuel"]
[Result "1-0"]
[ECO "E10"]
[WhiteElo "2543"]
[BlackElo "2230"]
[Annotator "ChessBase"]
[PlyCount "85"]
[EventDate "2019.04.13"]
[EventType "swiss"]
[EventCountry "URU"]
[SourceTitle "playchess.com"]
[Source "ChessBase"]
[SourceQuality "1"]
[TimeControl "40/5400+30:1800+30"]

1. d4 {[%emt 0:09:12]} Nf6 {[%emt 0:00:00]} 2. c4 {[%emt 0:00:06]} e6 {[%emt 0:02:02]} 3. Nf3 {[%emt 0:00:15]} d5 {[%emt 0:00:10]} 4. e3 {[%emt 0:02:51]} c5 {[%emt 0:00:15]} 5. Nc3 {[%emt 0:00:07]} Nc6 {[%emt 0:00:12]} 6. a3 {[%emt 0:00:16]} cxd4 {[%emt 0:01:15]} 7. exd4 {[%emt 0:00:06]} Be7 {[%emt 0:00:15]} 8. cxd5 {[%emt 0:03:11]} Nxd5 {[%emt 0:00:09]} 9. Bd3 {[%emt 0:00:19]} O-O {[%emt 0:00:11]} 10. O-O {[%emt 0:00:06]} Bf6 {[%emt 0:01:26]} 11. Be4 {[%emt 0:01:10]} Nce7 {[%emt 0:01:27]} 12. Qd3 {[%emt 0:12:43]} g6 {[%emt 0:03:27]} 13. Bh6 {[%emt 0:09:15]} Re8 {[%emt 0:04:03]} 14. Rfe1 {[%emt 0:04:11]} Bd7 {[%emt 0:05:55]} 15. Ne5 {[%emt 0:08:24]} Bc6 {[%emt 0:02:33]} 16. Ng4 {[%emt 0:06:48]} Bh8 {[%emt 0:09:11]} 17. Bg5 {[%emt 0:00:57]} f6 {[%emt 0:16:37]} 18. Nh6+ {[%emt 0:11:55]} Kg7 {[%emt 0:04:02]} 19. Bd2 {[%emt 0:00:25]} Ng8 {[%emt 0:10:16]} 20. Qh3 {[%emt 0:08:50]} Nxh6 {[%emt 0:17:00]} 21. Bxh6+ {[%emt 0:00:07]} Kg8 {[%emt 0:00:06]} 22. Qg3 {[%emt 0:02:02]} f5 {[%emt 0:05:46]} 23. Bxd5 {[%emt 0:00:35]} Bxd5 {[%emt 0:00:06]} 24. Rad1 {[%emt 0:01:03]} Bf6 {[%emt 0:02:20]} 25. Bf4 {[%emt 0:03:31]} a6 {[%emt 0:07:37]} 26. Be5 {[%emt 0:01:51]} Bh4 {[%emt 0:01:17]} 27. Qe3 {[%emt 0:03:37]} Rc8 {[%emt 0:01:13]} 28. h3 {[%emt 0:05:04]} Bg5 {[%emt 0:00:34]} 29. Bf4 {[%emt 0:00:16]} Bf6 {[%emt 0:00:56]} 30. Rd2 {[%emt 0:00:07]} b5 {[%emt 0:01:54]} 31. Kh2 {[%emt 0:01:28]} Bc4 {[%emt 0:01:14]} 32. Be5 {[%emt 0:00:21]} Bg5 {[%emt 0:00:21]} 33. f4 {[%emt 0:00:05]} Bh4 {[%emt 0:00:16]} 34. g3 {[%emt 0:00:55]} Be7 {[%emt 0:00:01]} 35. g4 {[%emt 0:01:04]} Bd5 {[%emt 0:02:11]} 36. Rg1 {[%emt 0:01:35]} b4 {[%emt 0:00:41]} 37. gxf5 {[%emt 0:03:09]} bxc3 {[%emt 0:00:47]} 38. fxg6 {[%emt 0:00:05]} h5 {[%emt 0:00:07]} 39. f5 {[%emt 0:00:33]} Bf6 {[%emt 0:00:22]} 40. Qh6 {[%emt 0:00:26]} Bxe5+ {[%emt 0:01:11]} 41. dxe5 {[%emt 0:30:02]} Qc7 {[%emt 0:30:11]} 42. f6 {[%emt 0:00:00]} Qxe5+ {[%emt 0:00:00]} 43. Rg3 {[%emt 0:00:00]} 1-0

[Event "FIDE Zonal 2.5 Open 2019"]
[Site "Montevideo"]
[Date "2019.04.14"]
[Round "2.7"]
[White "Tristan, Leonardo"]
[Black "Kropff, Ricardo"]
[Result "1-0"]
[ECO "B13"]
[WhiteElo "2504"]
[BlackElo "2220"]
[Annotator "RC"]
[PlyCount "89"]
[EventDate "2019.04.13"]
[EventType "swiss"]
[EventCountry "URU"]
[SourceTitle "playchess.com"]
[Source "ChessBase"]
[SourceQuality "1"]
[TimeControl "40/5400+30:1800+30"]

1. d4 {[%emt 0:00:00]} d5 {[%emt 0:08:57]} 2. Bf4 {[%emt 0:00:00]} c5 {[%emt 0:00:19]} 3. e3 {[%emt 0:00:03]} cxd4 {[%emt 0:00:31]} 4. exd4 {[%emt 0:00:07]} Nc6 {[%emt 0:00:04]} 5. c3 {[%emt 0:01:55]} Nf6 {[%emt 0:00:20]} 6. Bd3 {[%emt 0:03:13]} Bg4 {[%emt 0:00:08]} 7. Qb3 {[%emt 0:02:44]} Qc8 {[%emt 0:00:11]} 8. Nd2 {[%emt 0:02:06]} e6 {[%emt 0:00:20]} 9. Ngf3 {[%emt 0:00:46]} Be7 {[%emt 0:00:11]} 10. O-O {[%emt 0:03:44]} Bh5 {[%emt 0:00:26]} 11. a4 {[%emt 0:07:29]} O-O {[%emt 0:00:34]} 12. a5 {[%emt 0:01:27]} Bg6 {[%emt 0:01:24]} 13. a6 {[%emt 0:04:13]} b6 {[%emt 0:01:05]} 14. Bb5 {[%emt 0:00:11]} Ne4 {[%emt 0:03:54]} 15. Nxe4 {[%emt 0:29:16]} Bxe4 {[%emt 0:02:22]} 16. Qa4 {[%emt 0:01:09]} Na5 {[%emt 0:15:00]} 17. Nd2 {[%emt 0:08:48]} g5 {[%emt 0:05:28]} 18. Bg3 {[%emt 0:07:19]} Bg6 {[%emt 0:08:13]} 19. Bd7 {[%emt 0:05:42]} Qxa6 {[%emt 0:06:51]} 20. Nf3 {[%emt 0:09:38]} Qe2 {[%emt 0:07:48]} 21. b4 {[%emt 0:03:54]} Nc4 {[%emt 0:13:16]} 22. Bc6 {[%emt 0:00:06]} Rac8 {[%emt 0:01:47]} 23. Bb7 {[%emt 0:00:11]} Rcd8 {[%emt 0:01:10]} 24. Bc7 {[%emt 0:01:01]} Be4 {[%emt 0:07:20]} 25. Bxd8 {[%emt 0:04:07]} Rxd8 {[%emt 0:02:37]} 26. Qd1 {[%emt 0:01:01]} Bxf3 {[%emt 0:01:10]} 27. gxf3 {[%emt 0:00:05]} Qb2 {[%emt 0:00:48]} 28. Qd3 {[%emt 0:02:50]} a5 {[%emt 0:04:42]} 29. bxa5 {[%emt 0:00:51]} bxa5 {[%emt 0:00:05]} 30. Ba6 {[%emt 0:00:03]} Nd2 {[%emt 0:01:19]} 31. Rfd1 {[%emt 0:00:49]} Nb3 {[%emt 0:00:13]} 32. Rab1 {[%emt 0:00:13]} Qa3 {[%emt 0:03:14]} 33. f4 {[%emt 0:00:05]} gxf4 {[%emt 0:00:28]} 34. Qh3 {[%emt 0:00:41]} a4 {[%emt 0:01:25]} 35. Bd3 {[%emt 0:00:34]} Bf6 {[%emt 0:01:42]} 36. Qh6 {[%emt 0:00:54]} Bg7 {[%emt 0:00:04]} 37. Qxh7+ {[%emt 0:00:04]} Kf8 {[%emt 0:00:03]} 38. Kh1 {[%emt 0:00:17]} Qe7 {[%emt 0:01:08]} 39. Bb5 {[%emt 0:01:02]} Ra8 {[%emt 0:01:32]} 40. Bxa4 {[%emt 0:00:36]} Rxa4 {[%emt 0:00:12]} 41. Rxb3 {[%emt 0:30:17]} Ra8 {[%emt 0:31:11]} 42. Rdb1 {[%emt 0:00:00]} Qf6 {[%emt 0:00:00]} 43. Rb8+ {[%emt 0:00:00]} Rxb8 {[%emt 0:00:00]} 44. Rxb8+ {[%emt 0:00:00]} Ke7 {[%emt 0:00:00]} 45. Qg8 {[%emt 0:00:00]} 1-0

[Event "FIDE Zonal 2.5 Open 2019"]
[Site "Montevideo"]
[Date "2019.04.14"]
[Round "2.8"]
[White "El Ters, Antouan"]
[Black "Krysa, Leandro"]
[Result "0-1"]
[ECO "D95"]
[WhiteElo "2181"]
[BlackElo "2498"]
[Annotator "ChessBase"]
[PlyCount "68"]
[EventDate "2019.04.13"]
[EventType "swiss"]
[EventCountry "URU"]
[SourceTitle "playchess.com"]
[Source "ChessBase"]
[SourceQuality "1"]
[TimeControl "40/5400+30:1800+30"]

1. d4 {[%emt 0:00:43]} Nf6 {[%emt 0:00:00]} 2. c4 {[%emt 0:00:02]} g6 {[%emt 0:00:49]} 3. Nc3 {[%emt 0:00:17]} d5 {[%emt 0:00:05]} 4. Nf3 {[%emt 0:01:43]} Bg7 {[%emt 0:00:06]} 5. e3 {[%emt 0:05:33]} O-O {[%emt 0:00:33]} 6. Qb3 {[%emt 0:04:05]} e6 {[%emt 0:01:16]} 7. Be2 {[%emt 0:04:32]} b6 {[%emt 0:00:25]} 8. O-O {[%emt 0:03:50]} Bb7 {[%emt 0:00:06]} 9. Ne5 {[%emt 0:09:34]} Nbd7 {[%emt 0:04:44]} 10. Rd1 {[%emt 0:09:33]} dxc4 {[%emt 0:21:55]} 11. Nxc4 {[%emt 0:03:53]} Qe7 {[%emt 0:03:20]} 12. Bd2 {[%emt 0:03:15]} e5 {[%emt 0:04:05]} 13. Nb5 {[%emt 0:09:26]} exd4 {[%emt 0:02:51]} 14. Nxd4 {[%emt 0:02:08]} c5 {[%emt 0:13:35]} 15. Nf3 {[%emt 0:07:56]} Ne4 {[%emt 0:04:54]} 16. Be1 {[%emt 0:02:06]} Bc6 {[%emt 0:01:32]} 17. Nfd2 {[%emt 0:03:35]} Ng5 {[%emt 0:05:56]} 18. f4 {[%emt 0:04:10]} Ne4 {[%emt 0:02:34]} 19. Nxe4 {[%emt 0:03:53]} Bxe4 {[%emt 0:00:06]} 20. Bc3 {[%emt 0:01:39]} Rad8 {[%emt 0:03:49]} 21. Bxg7 {[%emt 0:03:29]} Kxg7 {[%emt 0:00:07]} 22. Rd6 {[%emt 0:04:44]} Nf6 {[%emt 0:02:21]} 23. Rad1 {[%emt 0:00:39]} Rxd6 {[%emt 0:04:03]} 24. Nxd6 {[%emt 0:00:27]} Bd5 {[%emt 0:01:52]} 25. Rxd5 {[%emt 0:04:06]} Nxd5 {[%emt 0:00:11]} 26. Qxd5 {[%emt 0:00:07]} Qxe3+ {[%emt 0:00:19]} 27. Kf1 {[%emt 0:00:04]} Qxf4+ {[%emt 0:00:49]} 28. Kg1 {[%emt 0:00:22]} Qc1+ {[%emt 0:03:10]} 29. Bd1 {[%emt 0:01:20]} Qxb2 {[%emt 0:00:47]} 30. Ba4 {[%emt 0:00:55]} Qc1+ {[%emt 0:04:14]} 31. Bd1 {[%emt 0:00:07]} Qe3+ {[%emt 0:01:07]} 32. Kf1 {[%emt 0:00:09]} Qe7 {[%emt 0:02:20]} 33. Bb3 {[%emt 0:02:08]} Rd8 {[%emt 0:01:03]} 34. Qxf7+ {[%emt 0:00:38]} Qxf7+ {[%emt 0:00:06]} 0-1

[Event "FIDE Zonal 2.5 Open 2019"]
[Site "Montevideo"]
[Date "2019.04.14"]
[Round "2.9"]
[White "Salinas Herrera, Pablo"]
[Black "Curi, Gabriel"]
[Result "1-0"]
[ECO "A06"]
[WhiteElo "2483"]
[BlackElo "2202"]
[Annotator "ChessBase"]
[PlyCount "55"]
[EventDate "2019.04.13"]
[EventType "swiss"]
[EventCountry "URU"]
[SourceTitle "playchess.com"]
[Source "ChessBase"]
[SourceQuality "1"]
[TimeControl "40/5400+30:1800+30"]

1. Nf3 {[%emt 0:08:38]} d5 {[%emt 0:00:17]} 2. b3 {[%emt 0:00:06]} Bg4 {[%emt 0:00:12]} 3. Bb2 {[%emt 0:00:26]} Nd7 {[%emt 0:00:28]} 4. e3 {[%emt 0:00:18]} e6 {[%emt 0:01:47]} 5. h3 {[%emt 0:03:03]} Bxf3 {[%emt 0:04:27]} 6. Qxf3 {[%emt 0:00:06]} Ngf6 {[%emt 0:00:06]} 7. g4 {[%emt 0:05:46]} c6 {[%emt 0:12:03]} 8. h4 {[%emt 0:07:09]} Qc7 {[%emt 0:06:13]} 9. g5 {[%emt 0:02:32]} Ne4 {[%emt 0:00:37]} 10. Nc3 {[%emt 0:14:22]} Ndc5 {[%emt 0:17:31]} 11. Nb1 {[%emt 0:22:56]} Nd7 {[%emt 0:05:58]} 12. a3 {[%emt 0:00:08]} Nd6 {[%emt 0:10:12]} 13. Bh3 {[%emt 0:10:39]} O-O-O {[%emt 0:02:07]} 14. d3 {[%emt 0:00:19]} Re8 {[%emt 0:03:14]} 15. Nd2 {[%emt 0:00:06]} Kb8 {[%emt 0:01:31]} 16. Qg3 {[%emt 0:02:19]} Nf5 {[%emt 0:07:15]} 17. Qxc7+ {[%emt 0:00:28]} Kxc7 {[%emt 0:00:07]} 18. Nf3 {[%emt 0:00:09]} h6 {[%emt 0:03:47]} 19. Ke2 {[%emt 0:01:51]} hxg5 {[%emt 0:09:03]} 20. hxg5 {[%emt 0:00:05]} f6 {[%emt 0:05:04]} 21. gxf6 {[%emt 0:09:14]} Nxf6 {[%emt 0:03:04]} 22. Ne5 {[%emt 0:01:15]} Rh6 {[%emt 0:01:47]} 23. Rag1 {[%emt 0:00:17]} c5 {[%emt 0:02:46]} 24. Nf7 {[%emt 0:00:14]} Rh5 {[%emt 0:00:22]} 25. Rg5 {[%emt 0:04:38]} Rxg5 {[%emt 0:00:16]} 26. Nxg5 {[%emt 0:00:07]} Kd7 {[%emt 0:01:03]} 27. c4 {[%emt 0:03:46]} g6 {[%emt 0:00:42]} 28. Bxf6 1-0

[Event "FIDE Zonal 2.5 Open 2019"]
[Site "Montevideo"]
[Date "2019.04.14"]
[Round "2.12"]
[White "Lopez Azambuja, Nicolas"]
[Black "Viera, Emilio"]
[Result "1/2-1/2"]
[ECO "A40"]
[WhiteElo "2328"]
[BlackElo "2138"]
[Annotator "NA"]
[PlyCount "57"]
[EventDate "2019.04.13"]
[EventType "swiss"]
[EventCountry "URU"]
[SourceTitle "playchess.com"]
[Source "ChessBase"]
[SourceQuality "1"]
[TimeControl "40/5400+30:1800+30"]

1. d4 {[%emt 0:00:00]} e6 {[%emt 0:00:00]} 2. c4 {[%emt 0:00:00]} f5 3. Nf3 {[%emt 0:00:02]} Nf6 {[%emt 0:00:00]} 4. Qc2 {[%emt 0:00:25]} b6 {[%emt 0:01:12]} 5. g3 {[%emt 0:01:35]} Bb7 {[%emt 0:00:45]} 6. Bg2 {[%emt 0:00:08]} Bb4+ {[%emt 0:05:52]} 7. Bd2 {[%emt 0:01:46]} Qe7 {[%emt 0:05:20]} 8. O-O {[%emt 0:00:38]} Bxd2 {[%emt 0:01:26]} 9. Nbxd2 {[%emt 0:03:35]} O-O {[%emt 0:00:10]} 10. Rfd1 {[%emt 0:01:36]} d6 $11 {[%emt 0:02:05]} 11. Rac1 {[%emt 0:10:32]} Nbd7 {[%emt 0:06:39]} 12. b4 {[%emt 0:14:59]} c5 {[%emt 0:07:45]} 13. dxc5 {[%emt 0:02:08]} dxc5 {[%emt 0:04:32]} 14. b5 {[%emt 0:01:17]} g6 {[%emt 0:11:17]} 15. Nb1 {[%emt 0:04:13]} e5 {[%emt 0:01:17]} 16. Ne1 {[%emt 0:03:53]} e4 {[%emt 0:01:53]} 17. f4 {[%emt 0:04:44]} Rfd8 {[%emt 0:10:19]} 18. Qb3 {[%emt 0:11:05]} Nf8 {[%emt 0:03:23]} 19. Nc3 {[%emt 0:03:52]} Ne6 {[%emt 0:02:54]} 20. e3 {[%emt 0:00:59]} Rxd1 {[%emt 0:05:25]} 21. Rxd1 {[%emt 0:00:37]} Rd8 {[%emt 0:00:13]} 22. Bf1 {[%emt 0:02:32]} Kf8 {[%emt 0:02:47]} 23. Be2 {[%emt 0:04:52]} Rd6 {[%emt 0:02:19]} 24. Rxd6 {[%emt 0:06:32]} Qxd6 {[%emt 0:00:12]} 25. Qd1 {[%emt 0:00:37]} Qxd1 {[%emt 0:01:20]} 26. Nxd1 {[%emt 0:02:23]} Nc7 {[%emt 0:00:58]} 27. Nc2 {[%emt 0:00:39]} Bc8 {[%emt 0:00:48]} 28. Na1 {[%emt 0:05:16]} Be6 {[%emt 0:01:05]} 29. Nb3 {[%emt 0:00:29]} 1/2-1/2

[Event "FIDE Zonal 2.5 Open 2019"]
[Site "Montevideo"]
[Date "2019.04.14"]
[Round "2.14"]
[White "Vazquez, Facundo"]
[Black "Fein, Jorge"]
[Result "1-0"]
[ECO "E11"]
[WhiteElo "2009"]
[BlackElo "1648"]
[Annotator "NA"]
[PlyCount "125"]
[EventDate "2019.04.13"]
[EventType "swiss"]
[EventCountry "URU"]
[SourceTitle "playchess.com"]
[Source "ChessBase"]
[SourceQuality "1"]
[TimeControl "40/5400+30:1800+30"]

1. d4 Nf6 {[%emt 0:16:31]} 2. c4 e6 3. Nf3 {[%emt 0:00:00]} Bb4+ {[%emt 0:01:56]} 4. Bd2 {[%emt 0:00:02]} Bxd2+ {[%emt 0:00:22]} 5. Nbxd2 {[%emt 0:00:18]} b6 {[%emt 0:00:09]} 6. e4 {[%emt 0:02:04]} d6 {[%emt 0:01:05]} 7. g3 {[%emt 0:00:35]} Bb7 {[%emt 0:00:24]} 8. Qc2 {[%emt 0:00:43]} c5 {[%emt 0:01:40]} 9. Bg2 $11 {[%emt 0:04:40]} O-O {[%emt 0:01:48]} 10. O-O {[%emt 0:02:21]} cxd4 {[%emt 0:02:53]} 11. Nxd4 {[%emt 0:00:03]} Nbd7 {[%emt 0:01:33]} 12. Rfd1 {[%emt 0:04:26]} Rc8 {[%emt 0:02:05]} 13. Rac1 {[%emt 0:03:32]} d5 {[%emt 0:03:38]} 14. exd5 {[%emt 0:11:38]} Bxd5 {[%emt 0:01:01]} 15. N4f3 {[%emt 0:06:03]} Bb7 {[%emt 0:04:06]} 16. b4 {[%emt 0:03:40]} Qc7 {[%emt 0:03:43]} 17. Qb2 {[%emt 0:01:13]} Qb8 {[%emt 0:01:55]} 18. Nb3 {[%emt 0:05:24]} Qa8 {[%emt 0:03:42]} 19. Qe2 {[%emt 0:08:17]} Rfd8 {[%emt 0:04:30]} 20. Nbd4 {[%emt 0:02:42]} Nf8 {[%emt 0:04:24]} 21. a4 {[%emt 0:11:53]} a5 {[%emt 0:05:25]} 22. bxa5 {[%emt 0:00:58]} Qxa5 {[%emt 0:03:17]} 23. Qb2 {[%emt 0:01:34]} Rd7 {[%emt 0:11:52]} 24. Re1 {[%emt 0:04:17]} Rdc7 {[%emt 0:01:10]} 25. Bf1 {[%emt 0:00:21]} Qh5 {[%emt 0:02:26]} 26. Re5 {[%emt 0:02:00]} Qh6 {[%emt 0:01:43]} 27. Qd2 {[%emt 0:04:07]} Qxd2 {[%emt 0:01:15]} 28. Nxd2 {[%emt 0:00:01]} Rc5 {[%emt 0:01:04]} 29. Rxc5 {[%emt 0:00:39]} Rxc5 {[%emt 0:00:42]} 30. Rb1 {[%emt 0:02:19]} N8d7 {[%emt 0:00:42]} 31. Rb4 {[%emt 0:00:46]} h6 {[%emt 0:02:12]} 32. N2b3 {[%emt 0:00:42]} Re5 {[%emt 0:01:22]} 33. a5 {[%emt 0:00:18]} Re1 {[%emt 0:03:03]} 34. axb6 {[%emt 0:00:54]} Be4 {[%emt 0:01:31]} 35. Nd2 {[%emt 0:02:31]} Rd1 {[%emt 0:02:05]} 36. N4b3 {[%emt 0:01:28]} Bd3 {[%emt 0:02:02]} 37. Kg2 {[%emt 0:00:16]} Bxf1+ {[%emt 0:02:23]} 38. Nxf1 {[%emt 0:00:02]} Nb8 {[%emt 0:02:16]} 39. Ne3 {[%emt 0:02:33]} Rd8 {[%emt 0:00:47]} 40. c5 {[%emt 0:00:55]} Nc6 {[%emt 0:01:21]} 41. Ra4 {[%emt 0:30:59]} Nd7 {[%emt 0:32:21]} 42. Nc4 {[%emt 0:00:59]} Ndb8 {[%emt 0:00:00]} 43. Ra8 {[%emt 0:00:00]} Kh7 {[%emt 0:00:00]} 44. Nba5 {[%emt 0:00:00]} Nd7 {[%emt 0:00:00]} 45. Rxd8 {[%emt 0:00:00]} Nxd8 {[%emt 0:00:00]} 46. c6 {[%emt 0:00:00]} Nxc6 {[%emt 0:00:00]} 47. Nxc6 {[%emt 0:00:00]} Nxb6 {[%emt 0:00:00]} 48. Nxb6 {[%emt 0:00:00]} g5 {[%emt 0:00:00]} 49. Kf3 {[%emt 0:00:00]} Kg7 {[%emt 0:00:00]} 50. Ke4 {[%emt 0:00:00]} h5 {[%emt 0:00:00]} 51. h4 {[%emt 0:00:00]} gxh4 {[%emt 0:00:00]} 52. gxh4 {[%emt 0:00:00]} Kg6 {[%emt 0:00:00]} 53. Ke5 {[%emt 0:00:00]} Kg7 {[%emt 0:00:00]} 54. Nd7 {[%emt 0:00:00]} Kg6 {[%emt 0:00:00]} 55. Ne7+ {[%emt 0:00:00]} Kg7 {[%emt 0:00:00]} 56. Nf6 {[%emt 0:00:00]} Kf8 {[%emt 0:00:00]} 57. Nc6 {[%emt 0:00:00]} Kg7 {[%emt 0:00:00]} 58. Nxh5+ {[%emt 0:00:00]} Kg6 {[%emt 0:00:00]} 59. Nf4+ {[%emt 0:00:00]} Kg7 {[%emt 0:00:00]} 60. h5 {[%emt 0:00:00]} Kg8 {[%emt 0:00:00]} 61. Nxe6 {[%emt 0:00:00]} fxe6 {[%emt 0:00:13]} 62. Kxe6 {[%emt 0:00:00]} Kg7 {[%emt 0:00:04]} 63. f4 {[%emt 0:00:00]} 1-0